Cogmind - Beta 13 @@@ ROGUE MODE // 2024.04.29 @ 23:31:09 Player: Falling_Sands Result: Destroyed by H-66 Slayer with Gauss Rifle Performance ------------- Evolutions (3) 1500 Regions Visited (5) 1000 Robots Destroyed (37) 185 Value Destroyed (1175) 1175 Prototype IDs (2) 40 Alien Tech Used (0) 0 Bonus (129) 129 TOTAL SCORE: 4029 Bonus ------- Follower Combat Kills 129 Cogmind --------- Core Integrity 0/700 Matter 275/300 Energy 67/100 System Corruption 7% Temperature Cool (0) Movement Core (100) Ox1 Location -7/Lower Caves Parts ------- > --- POWER (2) -------- (None) > --- PROPULSION (4) --- (None) > --- UTILITY (4) ------ Small Storage Unit Improved Signal Interpreter Core Analyzer > --- WEAPON (3) ------- (None) > --- INVENTORY (8) ---- Large Matter Pod (150) Weight Redist. System Advanced Visual Processing Unit Advanced Terrain Scan Processor Peak State ------------ > --- POWER ------------ Micro Nuclear Core > --- PROPULSION ------- VTOL Module VTOL Module VTOL Module > --- UTILITY ---------- Small Storage Unit Weight Redist. System Improved Signal Interpreter Improved Terrain Scanner > --- WEAPON ----------- Assault Cannon Molecular Deconstructor > --- INVENTORY -------- Large Matter Pod Advanced Visual Processing Unit Advanced Terrain Scan Processor Core Analyzer Particle Charger Assault Cannon [Rating: 41] Favorites ----------- Power Ion Engine Engine Ion Engine Power Core Micro Nuclear Core Propulsion Aluminum Leg Treads Light Treads Leg Aluminum Leg Wheel Wheel Hover Unit Backup Propulsion I Flight Unit VTOL Module Utility Sensor Array Device Sensor Array Storage Large Storage Unit Processor Targeting Computer Protection Light Armor Plating Weapon Assault Rifle Energy Gun Particle Gun Energy Cannon Beam Cannon Ballistic Gun Assault Rifle Ballistic Cannon Assault Cannon Launcher Rocket Launcher Special Weapon Molecular Deconstructor Build | -11 -10 -9 -8 -7 -7 ------- Run | Yrd Mat Mat Mat Fac Low Slots Evolved 6 | . . 2 2 2 . Power 1 | . . . 1 . . Propulsion 2 | . . 1 1 . . Utility 2 | . . 1 . 1 . Weapon 1 | . . . . 1 . Parts Attached 66 | 8 3 14 20 11 10 Power 6 | 2 . 1 2 1 . Engine 4 | 2 . 1 1 . . Core 2 | . . . 1 1 . Reactor . | . . . . . . Propulsion 20 | 3 . 7 4 4 2 Treads 7 | . . 7 . . . Leg 4 | 2 . . . . 2 Wheel 1 | 1 . . . . . Hover . | . . . . . . Flight 8 | . . . 4 4 . Utility 20 | 1 3 3 6 3 4 Device 8 | 1 2 . 1 1 3 Storage 3 | . . 1 1 1 . Processor 6 | . 1 . 3 1 1 Hackware . | . . . . . . Protection 3 | . . 2 1 . . Artifact . | . . . . . . Weapon 20 | 2 . 3 8 3 4 Energy Gun 2 | . . . 1 . 1 Energy Cannon 1 | . . . 1 . . Ballistic Gun 6 | 2 . 2 2 . . Ballistic Cannon 5 | . . . . 3 2 Launcher 5 | . . 1 4 . . Special Weapon 1 | . . . . . 1 Impact Weapon . | . . . . . . Slashing Weapon . | . . . . . . Piercing Weapon . | . . . . . . Special Melee Weapon . | . . . . . . Unidentified Prototypes 2 | . . . 1 . 1 Parts Lost 29 | . 2 3 11 . 13 Power 3 | . . . 2 . 1 Propulsion 15 | . 1 3 5 . 6 Utility 5 | . 1 . 2 . 2 Weapon 6 | . . . 2 . 4 Highest Loss Streak 13 | . 1 2 7 . 13 To Critical Strikes 1 | . . . 1 . . Average Slot Usage (%) 74 | . 97 83 65 49 70 Engine 5 | . 14 6 5 . . Core 3 | . . . 5 6 5 Treads 6 | . . 21 5 . . Leg 6 | . 27 2 . . 1 Flight 6 | . . . 8 7 22 Device 11 | . 18 15 5 7 11 Storage 5 | . . 6 9 7 7 Processor 6 | . 8 . 4 15 9 Protection 2 | . . 7 3 . . Ballistic Gun 13 | . 28 21 9 . . Ballistic Cannon 2 | . . . . 4 9 Naked Turns . | . . . . . . Heaviest Build 37 | 10 11 37 36 21 23 Greatest Support 60 | 20 20 60 20 22 30 Greatest Overweight (x) 4 | . 1 1 1 1 4 Average Overweight (x) . | . . . . . . Largest Inventory Capacity 15 | 5 5 15 15 8 8 Average Capacity 8 | 5 5 10 11 5 8 Most Carried 12 | 5 5 9 12 7 8 Average Carried 5 | 4 4 5 7 4 6 Final Capacity 15 | 5 5 15 5 8 8 Final Carried 8 | 5 5 8 5 7 4 Class Distribution -------------------- 67% | Mutant 15% | Scavenger-Mutant 11% | Scavenger-Sprinter 5% | Sprinter Dominant Class ---------------- Mutant | -10/Materials Scavenger-Mutant | -9/Materials Mutant | -8/Materials Mutant | -7/Factory Scavenger-Sprinter | -7/Lower Caves Resources | -11 -10 -9 -8 -7 -7 ----------- Run | Yrd Mat Mat Mat Fac Low Matter Collected 1654 | 412 79 447 187 344 185 Remotely . | . . . . . . Salvage Created 1127 | 136 167 539 255 . 30 Parts 81 | 11 13 39 17 . 1 Haulers Intercepted . | . . . . . . Recyclers Shooed . | . . . . . . Parts Field Recycled . | . . . . . . Retrieved Matter . | . . . . . . Parts Self-Destructed 9 | . . . . . 9 Prevented 1 | . . . . . 1 Kills | -11 -10 -9 -8 -7 -7 ------- Run | Yrd Mat Mat Mat Fac Low Combat Hostiles Destroyed 27 | 1 4 13 8 . 1 Guns 19 | 1 3 11 4 . . Cannons 2 | . . . 2 . . AOE 5 | . 1 2 2 . . Classes Destroyed 10 | 3 2 2 2 . 1 Worker 1 | 1 . . . . . Builder 2 | . . . 2 . . Tunneler 4 | 4 . . . . . Operator 1 | . 1 . . . . Watcher 2 | . 1 1 . . . Swarmer 2 | . . . 2 . . Grunt 19 | 1 4 9 5 . . Duelist 1 | . . 1 . . . Sentry 4 | . . 3 1 . . Programmer 1 | . . . . . 1 Best Kill Streak 6 | 2 2 6 4 . 1 Combat Bots Only 6 | 1 2 6 2 . 1 Max Kills in Single Turn 1 | 1 1 1 1 . 1 Gunslinging . | . . . . . . Exploded 1 | . 1 1 1 . . Melee . | . . . . . . Uniques/NPCs Destroyed . | . . . . . . Combat | -11 -10 -9 -8 -7 -7 -------- Run | Yrd Mat Mat Mat Fac Low Hostile Shots Fired 395 | 2 42 59 123 3 166 Missed 107 | 1 10 14 36 2 44 Damage Taken 4418 | 10 454 856 1229 14 1855 Core 1458 | . 216 115 417 . 710 Absorbed by Shields . | . . . . . . Regen/Repaired (Parts) 14 | . . . 14 . . Core Remaining (%) 52 | 100 13 71 24 . . Volleys Fired 144 | 22 22 35 46 9 10 Largest 2 | 2 2 2 2 1 2 Hottest 125 | 40 40 56 125 44 119 Shots Fired 255 | 44 44 70 74 9 14 Gun 201 | 44 44 67 44 . 2 Cannon 38 | . . . 20 9 9 Launcher 13 | . . 3 10 . . Special 3 | . . . . . 3 Kinetic 205 | 44 44 67 32 9 9 Thermal 34 | . . . 32 . 2 Explosive 13 | . . 3 10 . . Electromagnetic . | . . . . . . Robot Hit Streak 8 | 6 6 8 6 1 4 Robot Miss Streak 5 | 3 3 2 5 5 3 Penetration Max . | . . . . . . Secondary Targets 6 | . 2 3 1 . . Max Gunslinging Chain 1 | . 1 1 1 . . Shots Hit Robots 148 | 23 26 47 42 2 8 Core Hits 58 | 7 9 22 18 . 2 Critical Kills . | . . . . . . Critical Parts Destroyed 1 | 1 . . . . . Critical Strikes 1 | 1 . . . . . Destroy 1 | 1 . . . . . Melee Attacks . | . . . . . . Impact . | . . . . . . Slashing . | . . . . . . Piercing . | . . . . . . Sneak Attacks . | . . . . . . Combat Hostiles . | . . . . . . Follow-up Attacks . | . . . . . . Damage Inflicted 3085 | 285 600 805 1183 51 161 Guns 1770 | 285 339 633 465 . 48 Cannons 356 | . . . 192 51 113 Explosions 959 | . 261 172 526 . . Melee . | . . . . . . Ramming . | . . . . . . Kinetic 1773 | 285 339 633 352 51 113 Thermal 688 | . 261 74 305 . 48 Explosive 624 | . . 98 526 . . Electromagnetic . | . . . . . . Impact . | . . . . . . Slashing . | . . . . . . Piercing . | . . . . . . Highest Corruption 7 | . . . . . 7 Average Corruption 3 | . . . . . 3 Corruption Purged . | . . . . . . Corruption Blocked . | . . . . . . Effects 2 | . . . . . 2 Message Errors 2 | . . . . . 2 Overload Shots . | . . . . . . Overflow Damage 155 | . 17 82 56 . . Projectiles . | . . . . . . Explosions 155 | . 17 82 56 . . Melee . | . . . . . . Knockbacks 1 | . . . . . 1 Impact . | . . . . . . Kinetic 1 | . . . . . 1 Secondary . | . . . . . . Self-Inflicted Damage 476 | . 111 286 79 . . Shots 10 | . 1 5 4 . . Rammed . | . . . . . . Targets Rammed . | . . . . . . Kicked . | . . . . . . Crushed . | . . . . . . Highest Temperature 521 | . 5 28 521 . 60 Average Temperature 112 | . 5 11 154 . 28 Received Heat Transfer 1092 | 6 192 255 531 . 108 Effects 11 | . . . 11 . . Shutdowns 1 | . . . 1 . . Energy Bleed 1 | . . . 1 . . Interference 3 | . . . 3 . . Short Circuit 1 | . . . 1 . . Damage (major) 4 | . . . 4 . . Damage (core) 1 | . . . 1 . . Siege Activations . | . . . . . . Robots Corrupted . | . . . . . . Combat Hostiles . | . . . . . . Parts Fried . | . . . . . . Impact Corruptions . | . . . . . . Robots Melted . | . . . . . . Combat Hostiles . | . . . . . . Parts Melted . | . . . . . . Heat Transferred 940 | . 150 50 666 . 74 Parts Sabotaged . | . . . . . . Parts Stolen . | . . . . . . Parts Stripped . | . . . . . . Power Chain Reactions . | . . . . . . Alert | -11 -10 -9 -8 -7 -7 ------- Run | Yrd Mat Mat Mat Fac Low Peak Influence 321 | 45 130 295 321 212 . Initial 109 | . 29 8 109 70 . Average 107 | 21 61 129 173 114 . Maximum Alert Level 1 | . . 1 1 1 . Low Security (%) 83 | 100 100 76 69 77 . Level 1 16 | . . 23 30 22 . Level 2 . | . . . . . . Level 3 . | . . . . . . Level 4 . | . . . . . . Level 5 . | . . . . . . High Security . | . . . . . . Max Security . | . . . . . . Squads Dispatched 9 | . 2 5 2 . . Investigation 4 | . 2 2 . . . Extermination . | . . . . . . Reinforcement 5 | . . 3 2 . . Assault . | . . . . . . Garrison . | . . . . . . Intercept . | . . . . . . Searches Triggered . | . . . . . . Construction Impeded 1 | . . . 1 . . Haulers Reinforced . | . . . . . . Active Scanning Responses . | . . . . . . Cargo Convoy Interrupts . | . . . . . . Stealth | -11 -10 -9 -8 -7 -7 --------- Run | Yrd Mat Mat Mat Fac Low Distress Signals 3 | . . 1 2 . . Communications Jammed . | . . . . . . Distress Signals . | . . . . . . Times Spotted 53 | 1 10 17 15 4 6 Peak Tracking Total 6 | 1 3 6 4 4 5 Tactical Retreats 1 | . 1 . . . . Traps | -11 -10 -9 -8 -7 -7 ------- Run | Yrd Mat Mat Mat Fac Low Traps Triggered 3 | . . 2 . 1 . Indirectly . | . . . . . . Trap Hack Attempts . | . . . . . . Triggered . | . . . . . . Disarmed 6 | . 6 . . . . Reprogrammed . | . . . . . . Reused . | . . . . . . Traps Extracted . | . . . . . . Installed . | . . . . . . Triggered . | . . . . . . Machines | -11 -10 -9 -8 -7 -7 ---------- Run | Yrd Mat Mat Mat Fac Low Machines Disabled 7 | . 2 3 1 . 1 Max in Single Turn 2 | . 2 2 1 . 1 Machines Repaired . | . . . . . . Machines Dismantled . | . . . . . . Machines Sabotaged . | . . . . . . Overloaded Fab Kills . | . . . . . . Hacking | -11 -10 -9 -8 -7 -7 --------- Run | Yrd Mat Mat Mat Fac Low Machines Accessed 11 | . 5 1 2 3 . Terminals 10 | . 5 1 1 3 . Fabricators . | . . . . . . Repair Stations 1 | . . . 1 . . Recycling Units . | . . . . . . Scanalyzers . | . . . . . . Garrison Access . | . . . . . . Total Hacks 26 | . 13 3 5 5 . Successful 16 | . 9 1 4 2 . Failed 10 | . 4 2 1 3 . Catastrophic . | . . . . . . Database Lockouts . | . . . . . . Manual 3 | . . . . . 3 Terminals 22 | . 13 3 1 5 . Fabricators . | . . . . . . Repair Stations 4 | . . . 4 . . Recycling Units . | . . . . . . Scanalyzers . | . . . . . . Garrison Access . | . . . . . . Terminal Hacks 13 | . 9 1 1 2 . Record 2 | . . . . 2 . Emergency Access Points 1 | . . . 1 . . Alert Level 1 | . . 1 . . . Unreport Threat 1 | . 1 . . . . Locate Traps 4 | . 4 . . . . Disarm Traps 1 | . 1 . . . . Maintenance Status 1 | . 1 . . . . Hauler Manifests 1 | . 1 . . . . Zone Layout 1 | . 1 . . . . Fabricator Hacks . | . . . . . . Repair Station Hacks 3 | . . . 3 . . Scan Component 1 | . . . 1 . . Repair 1 | . . . 1 . . Refit 1 | . . . 1 . . Recycling Unit Hacks . | . . . . . . Scanalyzer . | . . . . . . Garrison Access Hacks . | . . . . . . Unauthorized Hacks . | . . . . . . Terminals . | . . . . . . Fabricators . | . . . . . . Repair Stations . | . . . . . . Recycling Units . | . . . . . . Scanalyzers . | . . . . . . Garrison Access . | . . . . . . Data Cores Recovered 1 | . 1 . . . . Used . | . . . . . . Hacking Detections 10 | . 4 1 2 3 . Full Trace Events 3 | . 2 1 . . . Feedback Events . | . . . . . . Feedback Blocked . | . . . . . . Robot Schematics Acquired . | . . . . . . Robots Built . | . . . . . . Authchips . | . . . . . . Time . | . . . . . . Total Robot Build Rating . | . . . . . . Part Schematics Acquired . | . . . . . . Parts Built . | . . . . . . Authchips . | . . . . . . Time . | . . . . . . Total Part Build Rating . | . . . . . . Parts Repaired 1 | . . . 1 . . Time 26 | . . . 26 . . Parts Recycled . | . . . . . . Recycled Matter . | . . . . . . Retrieved Matter . | . . . . . . Retrieved Components . | . . . . . . Parts Scanalyzed . | . . . . . . Part Schematics Acquired . | . . . . . . Parts Damaged . | . . . . . . Bothacking | -11 -10 -9 -8 -7 -7 ------------ Run | Yrd Mat Mat Mat Fac Low Used RIF Installer . | . . . . . . Robots Hacked . | . . . . . . Non-combat . | . . . . . . Combat . | . . . . . . Robot Hacks Applied . | . . . . . . Relay Couplers Released . | . . . . . . Fabnet Peak Effective % . | . . . . . . Robots Rewired . | . . . . . . Allies Hacked . | . . . . . . Hacks Repelled . | . . . . . . Allies | -11 -10 -9 -8 -7 -7 -------- Run | Yrd Mat Mat Mat Fac Low Total Allies 3 | . . . . 3 . Largest Group 3 | . . . . 3 2 Highest-Rated Group 93 | . . . . 93 62 Highest-Rated Ally 31 | . . . . 31 31 Total Orders . | . . . . . . Ally Attacks 36 | . . . . 13 23 Total Damage 580 | . . . . 210 370 Kills 7 | . . . . 5 2 Allies Corrupted . | . . . . . . Allies Melted . | . . . . . . Intel | -11 -10 -9 -8 -7 -7 ------- Run | Yrd Mat Mat Mat Fac Low Robot Analysis Total . | . . . . . . Derelict Logs Recovered 2 | . . . . . 2 Drone Launches . | . . . . . . Drone Recoveries . | . . . . . . Exploration | -11 -10 -9 -8 -7 -7 ------------- Run | Yrd Mat Mat Mat Fac Low Turns Passed 2545 | 344 440 559 532 403 267 Spaces Moved 2569 | 229 258 242 404 760 676 Core 563 | 22 . . 66 465 10 Treads 274 | . . 179 95 . . Legs 538 | 207 258 63 . . 10 Wheels . | . . . . . . Hover . | . . . . . . Flight 1194 | . . . 243 295 656 Fastest Speed 26 | 50 120 160 27 26 26 Average Speed 73 | 113 123 173 85 43 30 Slowest Speed 355 | 120 190 240 240 115 355 Overloaded Moves . | . . . . . . Propulsion Burnouts . | . . . . . . Robots Hopped 9 | . . . 7 2 . Cave-ins Triggered . | . . . . . . Exploration Rate (%) 36 | 10 44 29 38 21 74 Regions Visited 5 Branch Regions 1 Pre-discovered Areas . | . . . . . . Known Exits Taken 1 | . . . . 1 . Unknown Exits Taken 4 | 1 1 1 1 . . Scrap Searched 2 | . . . . . 2 Spaces Dug . | . . . . . . Terrain Destroyed 145 | . 39 40 66 . . Melee . | . . . . . . Projectile . | . . . . . . AOE 145 | . 39 40 66 . . Terrain Rammed . | . . . . . . Walls Destroyed . | . . . . . . Machines Disabled . | . . . . . . Actions | -11 -10 -9 -8 -7 -7 --------- Run | Yrd Mat Mat Mat Fac Low Total 2969 | 268 336 314 509 819 723 Wait 116 | . 47 . 26 27 16 Move 2547 | 228 257 241 390 755 676 Hop 8 | . . . 6 2 . Pick Up 58 | 10 4 16 11 11 6 Fast Attach 6 | 1 1 . 2 2 . Attach 36 | 5 1 6 9 7 8 Detach 4 | . . . 1 1 2 Swap 24 | 2 1 8 9 2 2 Drop 26 | . 3 8 9 3 3 Fire 144 | 22 22 35 46 9 10 Melee . | . . . . . . Ram . | . . . . . . Kick . | . . . . . . Crush . | . . . . . . Escape Stasis . | . . . . . . Rewire . | . . . . . . Trap . | . . . . . . Miscellaneous . | . . . . . . Route ------- -11/Scrapyard -10/Materials -9/Materials -8/Materials -7/Factory -7/Lower Caves (discovered 1 exit: *Low) History --------- Turn | Location | Event 2 | -11/Scrapyard | Met Revision 17 123 | -11/Scrapyard | Discovered new exit (range 8) 345 | -11/Scrapyard | Entered Materials 346 | -10/Materials | Build established: Mutant 741 | -10/Materials | Core integrity fell below 50% 746 | -10/Materials | Discovered new exit (range 16) 779 | -10/Materials | Core integrity fell below 20% 785 | -10/Materials | Entered another Materials area 785 | -9/Materials | Evolved 2 slots: Propulsion x1, Utility x1 1231 | -9/Materials | Build established: Scavenger-Mutant 1251 | -9/Materials | Discovered new exit (range 11) 1344 | -9/Materials | Entered another Materials area 1344 | -8/Materials | Evolved 2 slots: Power x1, Propulsion x1 1446 | -8/Materials | Repaired Sensor Array 1618 | -8/Materials | Build established: Mutant 1641 | -8/Materials | Lost 3 parts (1p1n1u) 1841 | -8/Materials | Core integrity fell below 50% 1869 | -8/Materials | Discovered new exit (range 16) 1876 | -8/Materials | Entered Factory 1876 | -7/Factory | Evolved 2 slots: Utility x1, Weapon x1 1896 | -7/Factory | Lost 7 parts (1p4n2w) 2101 | -7/Factory | Allied Derelicts emerged from ambush trap array 2216 | -7/Factory | Discovered new exit (range 4) 2217 | -7/Factory | Identified exit to Lower Caves 2279 | -7/Factory | Entered Lower Caves 2279 | -7/Lower Caves | Accompanied by 2 allies 2343 | -7/Lower Caves | Learned Factory security intel 2356 | -7/Lower Caves | Identified exit to Lower Caves 2384 | -7/Lower Caves | Acquired the password to a Derelict Tinkerer's latest research 2396 | -7/Lower Caves | Found Prototype Special Weapon 2425 | -7/Lower Caves | Spotted B-75 Beast 2463 | -7/Lower Caves | Caught by Unaware searching for contraband prototypes 2465 | -7/Lower Caves | Identified Molecular Deconstructor 2483 | -7/Lower Caves | Caught by Unaware searching for contraband prototypes 2511 | -7/Lower Caves | Core integrity fell below 50% 2541 | -7/Lower Caves | Core integrity fell below 20% 2546 | -7/Lower Caves | Destroyed by H-66 Slayer with Gauss Rifle Last Messages --------------- Penetrated by Slug. Acquired Carbon-fiber Leg. Penetrated by Slug. Acquired 60 matter. Carbon-fiber Leg destroyed. Penetrated by Slug. Acquired Beamcaster. Penetrated by Slug. Slug penetrates Wall. Penetrated by Slug. Particle Charger destroyed. Assault Cannon destroyed. Slug penetrates Wall. Penetrated by Slug. Beamcaster destroyed. Carbon-fiber Leg destroyed. JKBCES9V8RLE8KDPMNJIXXL|HWK6S Penetrated by Slug. Slug penetrates Wall. Penetrated by Slug. Map ----- +----------------------------------------------------+ | ?????????????????????????????????????????????????? | | ?????????????????????????????????????????????????? | | ?????????????????????????????????????????????????? | | ?????????????????????????????????????????????????? | | ?????????????????????????????????????????????????? | | ?????????????????????????????????????????????????? | | ?????????????????????????????????????????????????? | | ?????????????????????????????????????????????????? | | ?????????????????????????????????????????????????? | | ?????????????????????????????????????????????????? | | ?????????????????????????????????????????????????? | | ?????????????????????????????????????????????????? | | ?????????????????????????????????????????????????? | | ?????????????????????????????????????????????????? | | ###?????????#####????????????????????????????????? | | # ########### ##???????????????????????????????? | | ## #???????????????????????????????? | | #?# #????????????????????????????????? | | #?## ## ##????????????????????????????????? | | #??# ##?##????#####????####??#####???????### | | #### ###?????## ##??## #### ###???### | | ## ##???## #??# ## ##### | | ### # #??# | | x #?## # | | [ %### ### ######## | | %x % %@ #?###??????? | | ### ## # h % #??????????? | | ####?# ####### *% ##??????????? | | ?????# #????#% ## ! ##???????????? | | ????# #???# ## ## #????????????? | | ???# ########???# ###### #????????????? | | ??# ##?????????## #???# #????????????? | | ??# #??????????# #???# ##????????????? | | ??## #??????????# ###### #?????????????? | | ???## #?????????## #### ### #?????????????? | | ????# ????????## #### ### #????????? ???? | | ???? ????????# #### ## #??????? ??? | | ???? ???????## #### ^ ##????? ???? | | ???? ???????# #?# #???? #????? | | ????? ???????## ##?## #??? #????? | | ?????????????????####???#### #### ##???? | | ???????????????????????????## #???? | | ????????????????????????????# #???? | | ????????????????????????????# ##??? | | ????????????????????????????# #??? | | ????????????????????####???## ##??? | | ???????????????????## #### ## ##???? | | ???????????????????# ##?# #????? | | ???????????????????# ####???# ???? | | ???????????????????## #####???? ??? | +----------------------------------------------------+ Best States ------------- Heat Dissipation 34 Energy Generation 18 Energy Capacity 265 Matter Stores 360 Matter Capacity 450 Sight Range 16 Robot Scan Range 14 Terrain Scan Range 16 Terrain Scan Density 10 ECM Strength 1 Additional Mass Support 6 Armor Coverage 150 Evasion (%) 64 Targeting Accuracy 10 Core Analysis 6 Recoil Reduction 3 Particle Charging 15 Item Schematics ----------------- None Robot Schematics ------------------ None Fabricated ------------ Nothing Alien Tech Used ----------------- None Achievements -------------- Deconstruction Everything Is Under Control Made in Tau Ceti IV Part-time Mechanic Risk Taker Shopping List Storm Trooper Uninvited Guest Challenges ------------ None Game ------ Seed InertialChromaticSteel Manual? 0 Play Time 01:04:45 Cumulative 1.8 hours Start 2024.04.29 @ 22:25:19 End 2024.04.29 @ 23:31:09 Sessions 1 Manual Loads 0 Difficulty Rogue Special Mode None Game No. 2 Rogue 2 Adventurer 0 Explorer 0 Win Type - Total 0 Types 0/0/0/0/0/0/0/0/0 Lore% 1 Gallery% 5 Achievement% 4 Wizard Run 0 Options --------- Layout 1 ASCII 0 Keyboard 0 Movement Mouse Keybinds 0 Fullscreen 1 Font 24/Proggy Map View 50x35 Zoom Use 0% Tactical HUD 0 Map Filters NONE Filters NONE Steam 1 RUN: 3b04ce93-adbc-4517-b72f-85a442743666